[Event "Open NK Rapid 2025"]
[Site "Helmond, Netherlands"]
[Date "2025.05.03"]
[Round "6.7"]
[White "Fridman, Daniel"]
[Black "Thodam, Malte"]
[Result "1-0"]
[TimeControl "15+5"]
[WhiteFideId "11600454"]
[BlackFideId "24687120"]
[WhiteElo "2539"]
[BlackElo "2044"]

1. Nf3 {[%clk 00:15:07]} {[%emt 00:00:02]} d5 {[%clk 00:15:09]} {[%emt
00:00:02]} 2. g3 {[%clk 00:15:09]} {[%emt 00:00:02]} Nf6 {[%clk 00:15:12]}
{[%emt 00:00:02]} 3. Bg2 {[%clk 00:15:12]} {[%emt 00:00:01]} e6 {[%clk
00:15:09]} {[%emt 00:00:10]} 4. d4 {[%clk 00:15:11]} {[%emt 00:00:05]} Be7
{[%clk 00:15:10]} {[%emt 00:00:04]} 5. c4 {[%clk 00:15:15]} {[%emt 00:00:02]}
O-O {[%clk 00:15:09]} {[%emt 00:00:06]} 6. Qc2 {[%clk 00:15:18]} {[%emt
00:00:01]} dxc4 {[%clk 00:15:02]} {[%emt 00:00:13]} 7. Qxc4 {[%clk 00:15:20]}
{[%emt 00:00:02]} c6 {[%clk 00:14:22]} {[%emt 00:00:45]} 8. O-O {[%clk
00:15:07]} {[%emt 00:00:17]} b5 {[%clk 00:14:20]} {[%emt 00:00:08]} 9. Qb3
{[%clk 00:14:54]} {[%emt 00:00:18]} Bb7 {[%clk 00:14:15]} {[%emt 00:00:10]} 10.
Rd1 {[%clk 00:14:57]} {[%emt 00:00:02]} Nbd7 {[%clk 00:13:47]} {[%emt
00:00:33]} 11. Ne5 {[%clk 00:14:56]} {[%emt 00:00:06]} Qb6 {[%clk 00:13:32]}
{[%emt 00:00:21]} 12. Be3 {[%clk 00:14:47]} {[%emt 00:00:13]} c5 {[%clk
00:11:23]} {[%emt 00:02:14]} 13. Nxd7 {[%clk 00:12:52]} {[%emt 00:02:01]} Nxd7
{[%clk 00:11:19]} {[%emt 00:00:06]} 14. Bxb7 {[%clk 00:12:49]} {[%emt
00:00:10]} Qxb7 {[%clk 00:11:22]} {[%emt 00:00:03]} 15. a4 {[%clk 00:12:51]}
{[%emt 00:00:02]} a6 {[%clk 00:10:12]} {[%emt 00:01:15]} 16. Na3 {[%clk
00:12:29]} {[%emt 00:00:27]} cxd4 {[%clk 00:09:23]} {[%emt 00:00:55]} 17. Bxd4
{[%clk 00:12:31]} {[%emt 00:00:03]} Nc5 {[%clk 00:09:23]} {[%emt 00:00:05]} 18.
Qe3 {[%clk 00:11:36]} {[%emt 00:01:00]} Rac8 {[%clk 00:08:16]} {[%emt
00:01:12]} 19. axb5 {[%clk 00:11:25]} {[%emt 00:00:16]} axb5 {[%clk 00:08:17]}
{[%emt 00:00:04]} 20. Nc2 {[%clk 00:09:28]} {[%emt 00:02:02]} Rc7 {[%clk
00:07:00]} {[%emt 00:01:21]} 21. Ra5 {[%clk 00:08:44]} {[%emt 00:00:49]} Rfc8
{[%clk 00:06:17]} {[%emt 00:00:48]} 22. Na3 {[%clk 00:07:45]} {[%emt 00:01:04]}
b4 {[%clk 00:05:53]} {[%emt 00:00:29]} 23. Rb5 {[%clk 00:06:11]} {[%emt
00:01:39]} Qd5 {[%clk 00:03:25]} {[%emt 00:02:33]} 24. Rxb4 {[%clk 00:06:12]}
{[%emt 00:00:04]} Nd7 {[%clk 00:02:48]} {[%emt 00:00:42]} 25. Rb5 {[%clk
00:05:21]} {[%emt 00:00:57]} Rc5 {[%clk 00:01:31]} {[%emt 00:01:22]} 26. Rxc5
{[%clk 00:04:54]} {[%emt 00:00:32]} Rxc5 {[%clk 00:01:00]} {[%emt 00:00:36]} 27.
Rd3 {[%clk 00:04:41]} {[%emt 00:00:17]} Rc8 {[%clk 00:00:18]} {[%emt 00:00:48]}
28. Bxg7 {[%clk 00:04:09]} {[%emt 00:00:36]} 1-0

[Event "Open NK Rapid 2025"]
[Site "Helmond, Netherlands"]
[Date "2025.05.03"]
[Round "6.8"]
[White "Peng, Li Min"]
[Black "Margaryan, Aren"]
[Result "1-0"]
[TimeControl "15+5"]
[WhiteFideId "14112620"]
[BlackFideId "40105075"]
[WhiteElo "2510"]
[BlackElo "2054"]

1. Nf3 {[%clk 00:15:09]} d5 {[%clk 00:15:02]} {[%emt 00:00:08]} 2. e3 {[%clk
00:15:11]} {[%emt 00:00:03]} Nf6 {[%clk 00:15:00]} {[%emt 00:00:07]} 3. c4
{[%clk 00:15:15]} {[%emt 00:00:01]} e6 {[%clk 00:15:00]} {[%emt 00:00:05]} 4.
Nc3 {[%clk 00:15:17]} {[%emt 00:00:02]} Be7 {[%clk 00:14:48]} {[%emt 00:00:17]}
5. b3 {[%clk 00:15:21]} {[%emt 00:00:02]} c5 {[%clk 00:14:44]} {[%emt
00:00:10]} 6. Bb2 {[%clk 00:15:17]} {[%emt 00:00:08]} a6 {[%clk 00:14:41]}
{[%emt 00:00:08]} 7. cxd5 {[%clk 00:15:18]} {[%emt 00:00:04]} exd5 {[%clk
00:14:40]} {[%emt 00:00:06]} 8. d4 {[%clk 00:15:19]} {[%emt 00:00:04]} b6
{[%clk 00:14:36]} {[%emt 00:00:09]} 9. Be2 {[%clk 00:14:46]} {[%emt 00:00:38]}
Nc6 {[%clk 00:14:31]} {[%emt 00:00:09]} 10. O-O {[%clk 00:14:37]} {[%emt
00:00:14]} O-O {[%clk 00:14:33]} {[%emt 00:00:04]} 11. Rc1 {[%clk 00:14:34]}
{[%emt 00:00:08]} Bb7 {[%clk 00:14:28]} {[%emt 00:00:10]} 12. dxc5 {[%clk
00:14:11]} {[%emt 00:00:29]} bxc5 {[%clk 00:14:25]} {[%emt 00:00:07]} 13. Na4
{[%clk 00:14:15]} {[%emt 00:00:02]} Ne4 {[%clk 00:14:14]} {[%emt 00:00:15]} 14.
Nd2 {[%clk 00:14:12]} {[%emt 00:00:07]} Qa5 {[%clk 00:13:40]} {[%emt 00:00:38]}
15. Nxe4 {[%clk 00:13:06]} {[%emt 00:01:13]} dxe4 {[%clk 00:13:44]} {[%emt
00:00:01]} 16. Qd7 {[%clk 00:13:09]} {[%emt 00:00:02]} Rab8 {[%clk 00:13:19]}
{[%emt 00:00:29]} 17. Qg4 {[%clk 00:13:06]} {[%emt 00:00:07]} f6 {[%clk
00:12:53]} {[%emt 00:00:31]} 18. Bc4+ {[%clk 00:12:35]} {[%emt 00:00:37]} Kh8
{[%clk 00:12:51]} {[%emt 00:00:06]} 19. Qxe4 {[%clk 00:12:38]} {[%emt
00:00:04]} Ne5 {[%clk 00:12:37]} {[%emt 00:00:18]} 20. Bd5 {[%clk 00:12:14]}
{[%emt 00:00:29]} Bxd5 {[%clk 00:12:26]} {[%emt 00:00:16]} 21. Qxd5 {[%clk
00:12:18]} {[%emt 00:00:01]} Rfd8 {[%clk 00:11:44]} {[%emt 00:00:48]} 22. Qe6
{[%clk 00:12:20]} {[%emt 00:00:02]} Ng6 {[%clk 00:10:55]} {[%emt 00:00:54]} 23.
h4 {[%clk 00:11:58]} {[%emt 00:00:26]} Rd6 {[%clk 00:10:18]} {[%emt 00:00:43]}
24. Qh3 {[%clk 00:11:58]} {[%emt 00:00:04]} Rd5 {[%clk 00:09:47]} {[%emt
00:00:37]} 25. h5 {[%clk 00:12:00]} {[%emt 00:00:04]} Ne5 {[%clk 00:09:44]}
{[%emt 00:00:08]} 26. h6 {[%clk 00:11:45]} {[%emt 00:00:19]} g6 {[%clk
00:09:08]} {[%emt 00:00:41]} 27. e4 {[%clk 00:11:30]} {[%emt 00:00:20]} Rd3
{[%clk 00:08:59]} {[%emt 00:00:14]} 28. Qe6 {[%clk 00:11:34]} {[%emt 00:00:02]}
Qc7 {[%clk 00:08:16]} {[%emt 00:00:48]} 29. Bxe5 {[%clk 00:11:15]} {[%emt
00:00:23]} fxe5 {[%clk 00:08:13]} {[%emt 00:00:08]} 30. Nxc5 {[%clk 00:11:09]}
{[%emt 00:00:12]} Rb6 {[%clk 00:07:45]} {[%emt 00:00:32]} 31. Nxd3 {[%clk
00:11:02]} {[%emt 00:00:12]} Qxc1 {[%clk 00:07:38]} {[%emt 00:00:12]} 32. Rxc1
{[%clk 00:11:04]} {[%emt 00:00:04]} Rxe6 {[%clk 00:07:40]} {[%emt 00:00:02]} 33.
Rc8+ {[%clk 00:11:07]} {[%emt 00:00:02]} 1-0

[Event "Open NK Rapid 2025"]
[Site "Helmond, Netherlands"]
[Date "2025.05.03"]
[Round "6.9"]
[White "Dgebuadze, Alexandre"]
[Black "Den Heijer, Rolinde"]
[Result "1-0"]
[TimeControl "15+5"]
[WhiteFideId "203882"]
[BlackFideId "1068300"]
[WhiteElo "2454"]
[BlackElo "1991"]

1. e4 {[%clk 00:15:07]} {[%emt 00:00:02]} c5 {[%clk 00:15:09]} {[%emt
00:00:02]} 2. Nf3 {[%clk 00:15:07]} {[%emt 00:00:04]} d6 {[%clk 00:15:13]}
{[%emt 00:00:02]} 3. d4 {[%clk 00:15:11]} {[%emt 00:00:01]} cxd4 {[%clk
00:15:16]} {[%emt 00:00:01]} 4. Qxd4 {[%clk 00:15:14]} {[%emt 00:00:01]} Nc6
{[%clk 00:15:18]} {[%emt 00:00:04]} 5. Bb5 {[%clk 00:15:17]} {[%emt 00:00:02]}
Bd7 {[%clk 00:15:16]} {[%emt 00:00:07]} 6. Bxc6 {[%clk 00:15:20]} {[%emt
00:00:02]} Bxc6 {[%clk 00:15:19]} {[%emt 00:00:02]} 7. Nc3 {[%clk 00:15:23]}
{[%emt 00:00:02]} Nf6 {[%clk 00:15:19]} {[%emt 00:00:05]} 8. Bg5 {[%clk
00:15:26]} {[%emt 00:00:02]} e6 {[%clk 00:15:17]} {[%emt 00:00:07]} 9. O-O-O
{[%clk 00:15:28]} {[%emt 00:00:02]} Be7 {[%clk 00:15:18]} {[%emt 00:00:04]} 10.
Rhe1 {[%clk 00:15:31]} {[%emt 00:00:03]} O-O {[%clk 00:15:19]} {[%emt
00:00:04]} 11. Qd3 {[%clk 00:15:25]} {[%emt 00:00:10]} Qa5 {[%clk 00:14:35]}
{[%emt 00:00:50]} 12. Bd2 {[%clk 00:15:24]} {[%emt 00:00:06]} Qc7 {[%clk
00:14:02]} {[%emt 00:00:38]} 13. Nd4 {[%clk 00:15:22]} {[%emt 00:00:07]} a6
{[%clk 00:13:30]} {[%emt 00:00:38]} 14. g4 {[%clk 00:15:09]} {[%emt 00:00:17]}
Nd7 {[%clk 00:12:59]} {[%emt 00:00:35]} 15. f4 {[%clk 00:14:34]} {[%emt
00:00:40]} b5 {[%clk 00:12:33]} {[%emt 00:00:32]} 16. Kb1 {[%clk 00:13:12]}
{[%emt 00:01:27]} b4 {[%clk 00:12:04]} {[%emt 00:00:34]} 17. Nxc6 {[%clk
00:12:55]} {[%emt 00:00:22]} Qxc6 {[%clk 00:12:06]} {[%emt 00:00:03]} 18. Nd5
{[%clk 00:12:48]} {[%emt 00:00:12]} Bh4 {[%clk 00:11:14]} {[%emt 00:00:57]} 19.
Nxb4 {[%clk 00:12:42]} {[%emt 00:00:11]} Qb6 {[%clk 00:10:24]} {[%emt
00:00:56]} 20. Re3 {[%clk 00:11:44]} {[%emt 00:01:02]} a5 {[%clk 00:09:55]}
{[%emt 00:00:34]} 21. Rh3 {[%clk 00:11:47]} {[%emt 00:00:02]} Be7 {[%clk
00:08:25]} {[%emt 00:01:35]} 22. e5 {[%clk 00:11:45]} {[%emt 00:00:06]} g6
{[%clk 00:08:22]} {[%emt 00:00:09]} 23. a3 {[%clk 00:07:08]} {[%emt 00:04:43]}
axb4 {[%clk 00:06:34]} {[%emt 00:01:52]} 24. Bxb4 {[%clk 00:07:10]} {[%emt
00:00:03]} Rfc8 {[%clk 00:05:57]} {[%emt 00:00:42]} 25. Bxd6 {[%clk 00:06:48]}
{[%emt 00:00:27]} Bf8 {[%clk 00:02:54]} {[%emt 00:03:08]} 26. Qb3 {[%clk
00:04:31]} {[%emt 00:02:22]} Qf2 {[%clk 00:02:34]} {[%emt 00:00:25]} 27. Rf3
{[%clk 00:03:36]} {[%emt 00:01:00]} Qxh2 {[%clk 00:02:02]} {[%emt 00:00:37]} 28.
f5 {[%clk 00:03:26]} {[%emt 00:00:15]} Bxd6 {[%clk 00:00:53]} {[%emt 00:01:14]}
29. exd6 {[%clk 00:03:01]} {[%emt 00:00:30]} Rab8 {[%clk 00:00:39]} {[%emt
00:00:19]} 30. Qa4 {[%clk 00:02:52]} {[%emt 00:00:14]} Nc5 {[%clk 00:00:20]}
{[%emt 00:00:24]} 31. Qc4 {[%clk 00:02:30]} {[%emt 00:00:27]} Qe5 {[%clk
00:00:22]} {[%emt 00:00:03]} 32. Qc3 {[%clk 00:02:10]} {[%emt 00:00:25]} Qe4
{[%clk 00:00:15]} {[%emt 00:00:12]} 33. fxg6 {[%clk 00:02:03]} {[%emt
00:00:11]} Qxg6 {[%clk 00:00:13]} {[%emt 00:00:07]} 34. Rf6 {[%clk 00:01:22]}
{[%emt 00:00:47]} Qxg4 {[%clk 00:00:15]} {[%emt 00:00:03]} 35. Qd2 {[%clk
00:00:55]} {[%emt 00:00:32]} Ne4 {[%clk 00:00:09]} {[%emt 00:00:11]} 36. Qd4
{[%clk 00:00:51]} {[%emt 00:00:07]} Nxf6 {[%clk 00:00:08]} {[%emt 00:00:07]} 37.
Rg1 {[%clk 00:00:56]} Qxg1+ {[%clk 00:00:11]} {[%emt 00:00:03]} 38. Qxg1+
{[%clk 00:00:59]} Kf8 {[%clk 00:00:14]} {[%emt 00:00:02]} 39. Qg5 {[%clk
00:00:57]} {[%emt 00:00:04]} Ng8 {[%clk 00:00:16]} {[%emt 00:00:06]} 40. b4
{[%clk 00:00:57]} {[%emt 00:00:05]} Rd8 {[%clk 00:00:17]} {[%emt 00:00:05]} 41.
Qc5 {[%clk 00:00:50]} {[%emt 00:00:11]} Rd7 {[%clk 00:00:19]} {[%emt 00:00:03]}
42. a4 {[%clk 00:00:50]} {[%emt 00:00:06]} Rbd8 {[%clk 00:00:23]} 43. a5 {[%clk
00:00:53]} {[%emt 00:00:02]} Rxd6 {[%clk 00:00:22]} {[%emt 00:00:06]} 44. a6
{[%clk 00:00:57]} Ne7 {[%clk 00:00:23]} {[%emt 00:00:04]} 45. a7 {[%clk
00:00:55]} {[%emt 00:00:06]} Rd5 {[%clk 00:00:12]} {[%emt 00:00:17]} 46. Qb6
{[%clk 00:00:49]} {[%emt 00:00:11]} R5d6 {[%clk 00:00:11]} {[%emt 00:00:06]} 47.
Qxd6 {[%clk 00:00:46]} {[%emt 00:00:07]} Rxd6 {[%clk 00:00:13]} {[%emt
00:00:04]} 48. a8=Q+ {[%clk 00:00:48]} {[%emt 00:00:03]} Kg7 {[%clk 00:00:16]}
{[%emt 00:00:02]} 49. Qg2+ {[%clk 00:00:49]} {[%emt 00:00:04]} Ng6 {[%clk
00:00:19]} {[%emt 00:00:02]} 50. b5 {[%clk 00:00:53]} Rd5 {[%clk 00:00:21]}
{[%emt 00:00:04]} 51. c4 {[%clk 00:00:55]} {[%emt 00:00:02]} Rd3 {[%clk
00:00:24]} {[%emt 00:00:02]} 52. Qb2+ {[%clk 00:00:54]} {[%emt 00:00:05]} Kf8
{[%clk 00:00:28]} {[%emt 00:00:02]} 53. b6 {[%clk 00:00:58]} {[%emt 00:00:01]}
Rd8 {[%clk 00:00:16]} {[%emt 00:00:17]} 54. c5 {[%clk 00:00:54]} {[%emt
00:00:09]} Ne7 {[%clk 00:00:20]} {[%emt 00:00:02]} 55. Qh8+ {[%clk 00:00:54]}
{[%emt 00:00:02]} Ng8 {[%clk 00:00:23]} {[%emt 00:00:03]} 56. c6 {[%clk
00:00:55]} {[%emt 00:00:05]} Rb8 {[%clk 00:00:10]} {[%emt 00:00:18]} 57. b7
{[%clk 00:00:57]} {[%emt 00:00:03]} Ke7 {[%clk 00:00:14]} {[%emt 00:00:01]} 58.
Qe5 {[%clk 00:00:59]} {[%emt 00:00:03]} 1-0

[Event "Open NK Rapid 2025"]
[Site "Helmond, Netherlands"]
[Date "2025.05.03"]
[Round "6.10"]
[White "Cernov, Henrik"]
[Black "Jara Segovia, Jesus Javier"]
[Result "1-0"]
[TimeControl "15+5"]
[WhiteFideId "16258312"]
[BlackFideId "3925439"]
[WhiteElo "2291"]
[BlackElo "1909"]

1. e4 {[%clk 00:15:09]} {[%emt 00:00:01]} Nf6 {[%clk 00:15:10]} {[%emt
00:00:01]} 2. Nc3 {[%clk 00:15:13]} {[%emt 00:00:01]} d5 {[%clk 00:15:14]}
{[%emt 00:00:01]} 3. exd5 {[%clk 00:15:17]} {[%emt 00:00:01]} Nxd5 {[%clk
00:15:17]} {[%emt 00:00:01]} 4. Bc4 {[%clk 00:15:20]} {[%emt 00:00:01]} Nxc3
{[%clk 00:15:19]} {[%emt 00:00:04]} 5. Qf3 {[%clk 00:15:24]} {[%emt 00:00:01]}
Nd5 {[%clk 00:14:41]} {[%emt 00:00:44]} 6. Bxd5 {[%clk 00:15:20]} {[%emt
00:00:09]} e6 {[%clk 00:14:45]} 7. Bxb7 {[%clk 00:14:50]} {[%emt 00:00:34]}
Bxb7 {[%clk 00:14:48]} {[%emt 00:00:02]} 8. Qxb7 {[%clk 00:14:54]} {[%emt
00:00:01]} Nd7 {[%clk 00:14:52]} 9. Nf3 {[%clk 00:14:22]} {[%emt 00:00:37]} Bd6
{[%clk 00:14:55]} {[%emt 00:00:02]} 10. Qe4 {[%clk 00:14:18]} {[%emt 00:00:09]}
O-O {[%clk 00:14:48]} {[%emt 00:00:12]} 11. O-O {[%clk 00:14:11]} {[%emt
00:00:13]} Nc5 {[%clk 00:14:40]} {[%emt 00:00:12]} 12. Qe2 {[%clk 00:14:12]}
{[%emt 00:00:04]} Rb8 {[%clk 00:14:20]} {[%emt 00:00:25]} 13. b3 {[%clk
00:13:42]} {[%emt 00:00:35]} Qf6 {[%clk 00:14:16]} {[%emt 00:00:09]} 14. d4
{[%clk 00:13:35]} {[%emt 00:00:12]} Nd7 {[%clk 00:14:16]} {[%emt 00:00:05]} 15.
c4 {[%clk 00:13:11]} {[%emt 00:00:29]} Bf4 {[%clk 00:14:16]} {[%emt 00:00:05]}
16. Bxf4 {[%clk 00:12:55]} {[%emt 00:00:22]} Qxf4 {[%clk 00:14:19]} {[%emt
00:00:01]} 17. Rad1 {[%clk 00:12:54]} {[%emt 00:00:06]} Rfd8 {[%clk 00:14:13]}
{[%emt 00:00:11]} 18. Rfe1 {[%clk 00:12:42]} {[%emt 00:00:17]} a5 {[%clk
00:14:08]} {[%emt 00:00:10]} 19. d5 {[%clk 00:12:29]} {[%emt 00:00:18]} exd5
{[%clk 00:14:03]} {[%emt 00:00:10]} 20. Rxd5 {[%clk 00:12:25]} {[%emt
00:00:10]} Nf8 {[%clk 00:13:38]} {[%emt 00:00:29]} 21. Rxa5 {[%clk 00:12:10]}
{[%emt 00:00:20]} Rd6 {[%clk 00:13:27]} {[%emt 00:00:16]} 22. Re5 {[%clk
00:11:46]} {[%emt 00:00:29]} Ne6 {[%clk 00:13:20]} {[%emt 00:00:12]} 23. Qe3
{[%clk 00:10:29]} {[%emt 00:01:22]} Qf6 {[%clk 00:13:09]} {[%emt 00:00:15]} 24.
Ng5 {[%clk 00:10:06]} {[%emt 00:00:28]} Nf8 {[%clk 00:12:19]} {[%emt 00:00:56]}
25. Qg3 {[%clk 00:09:25]} {[%emt 00:00:46]} Qg6 {[%clk 00:11:19]} {[%emt
00:01:05]} 26. R5e2 {[%clk 00:07:10]} {[%emt 00:02:20]} Rbd8 {[%clk 00:11:09]}
{[%emt 00:00:15]} 27. Ne4 {[%clk 00:07:08]} {[%emt 00:00:07]} Rd1 {[%clk
00:10:41]} {[%emt 00:00:33]} 28. Qxg6 {[%clk 00:06:57]} {[%emt 00:00:16]} hxg6
{[%clk 00:10:39]} {[%emt 00:00:06]} 29. g3 {[%clk 00:06:43]} {[%emt 00:00:20]}
Ne6 {[%clk 00:10:42]} {[%emt 00:00:02]} 30. Nc3 {[%clk 00:06:03]} {[%emt
00:00:45]} R1d3 {[%clk 00:10:01]} {[%emt 00:00:46]} 31. Re3 {[%clk 00:05:52]}
{[%emt 00:00:17]} Rd2 {[%clk 00:09:49]} {[%emt 00:00:16]} 32. R1e2 {[%clk
00:05:48]} {[%emt 00:00:10]} c5 {[%clk 00:09:52]} {[%emt 00:00:02]} 33. Nd5
{[%clk 00:05:28]} {[%emt 00:00:24]} Rd1+ {[%clk 00:09:24]} {[%emt 00:00:34]} 34.
Kg2 {[%clk 00:05:20]} {[%emt 00:00:13]} Kh7 {[%clk 00:09:25]} {[%emt 00:00:03]}
35. Re4 {[%clk 00:05:00]} {[%emt 00:00:25]} g5 {[%clk 00:09:22]} {[%emt
00:00:08]} 36. h4 {[%clk 00:04:51]} {[%emt 00:00:15]} Nd4 {[%clk 00:09:25]}
{[%emt 00:00:02]} 37. Re1 {[%clk 00:04:48]} {[%emt 00:00:08]} Rxe1 {[%clk
00:09:19]} {[%emt 00:00:10]} 38. Rxe1 {[%clk 00:04:52]} {[%emt 00:00:01]} gxh4
{[%clk 00:09:22]} {[%emt 00:00:02]} 39. Rh1 {[%clk 00:04:34]} {[%emt 00:00:23]}
Ra8 {[%clk 00:09:10]} {[%emt 00:00:17]} 40. Rxh4+ {[%clk 00:04:35]} {[%emt
00:00:04]} Kg6 {[%clk 00:09:02]} {[%emt 00:00:13]} 41. Nc3 {[%clk 00:03:45]}
{[%emt 00:00:56]} f5 {[%clk 00:08:46]} {[%emt 00:00:20]} 42. Rh1 {[%clk
00:03:33]} {[%emt 00:00:17]} Nc2 {[%clk 00:08:30]} {[%emt 00:00:21]} 43. Rd1
{[%clk 00:03:00]} {[%emt 00:00:39]} Ra5 {[%clk 00:07:30]} {[%emt 00:01:04]} 44.
Rd2 {[%clk 00:02:56]} {[%emt 00:00:10]} Ne1+ {[%clk 00:07:10]} {[%emt
00:00:24]} 45. Kf1 {[%clk 00:02:49]} {[%emt 00:00:12]} Nf3 {[%clk 00:07:13]}
{[%emt 00:00:02]} 46. Rd3 {[%clk 00:02:36]} {[%emt 00:00:17]} Nh2+ {[%clk
00:06:39]} {[%emt 00:00:40]} 47. Kg2 {[%clk 00:02:32]} {[%emt 00:00:09]} Ng4
{[%clk 00:06:43]} {[%emt 00:00:02]} 48. Na4 {[%clk 00:02:26]} {[%emt 00:00:11]}
Ra8 {[%clk 00:06:28]} {[%emt 00:00:20]} 49. Rd2 {[%clk 00:02:11]} {[%emt
00:00:20]} Rh8 {[%clk 00:06:22]} {[%emt 00:00:10]} 50. Nxc5 {[%clk 00:02:06]}
{[%emt 00:00:11]} Rh2+ {[%clk 00:06:12]} {[%emt 00:00:14]} 51. Kg1 {[%clk
00:02:10]} {[%emt 00:00:01]} Rh8 {[%clk 00:06:16]} 52. Nd3 {[%clk 00:01:57]}
{[%emt 00:00:19]} Kg5 {[%clk 00:06:12]} {[%emt 00:00:08]} 53. Nf4 {[%clk
00:01:55]} {[%emt 00:00:07]} Ne5 {[%clk 00:06:09]} {[%emt 00:00:08]} 54. Kg2
{[%clk 00:01:36]} {[%emt 00:00:24]} Ng4 {[%clk 00:06:13]} {[%emt 00:00:01]} 55.
Rd6 {[%clk 00:01:18]} {[%emt 00:00:23]} Nf6 {[%clk 00:06:05]} {[%emt 00:00:13]}
56. c5 {[%clk 00:01:16]} {[%emt 00:00:08]} Ra8 {[%clk 00:05:16]} {[%emt
00:00:53]} 57. a4 {[%clk 00:00:52]} {[%emt 00:00:29]} Rb8 {[%clk 00:05:20]}
{[%emt 00:00:01]} 58. Rb6 {[%clk 00:00:56]} Rc8 {[%clk 00:05:25]} 59. b4 {[%clk
00:00:55]} {[%emt 00:00:07]} Kh6 {[%clk 00:05:29]} 60. Nd5 {[%clk 00:00:53]}
{[%emt 00:00:07]} Kg5 {[%clk 00:05:25]} {[%emt 00:00:10]} 61. Nxf6 {[%clk
00:00:55]} {[%emt 00:00:03]} gxf6 {[%clk 00:05:29]} 62. c6 {[%clk 00:00:58]}
{[%emt 00:00:02]} f4 {[%clk 00:05:33]} 63. b5 {[%clk 00:00:58]} {[%emt
00:00:05]} fxg3 {[%clk 00:05:37]} 64. fxg3 {[%clk 00:01:02]} {[%emt 00:00:01]}
Rd8 {[%clk 00:05:38]} {[%emt 00:00:04]} 65. c7 {[%clk 00:01:05]} {[%emt
00:00:02]} Rd2+ {[%clk 00:05:43]} 66. Kf3 {[%clk 00:01:05]} {[%emt 00:00:05]}
Rc2 {[%clk 00:05:41]} {[%emt 00:00:06]} 67. Rc6 {[%clk 00:01:10]} Ra2 {[%clk
00:05:45]} 68. c8=Q {[%emt 00:00:04]} Ra3+ {[%clk 00:05:50]} 69. Rc3 {[%clk
00:01:14]} {[%emt 00:00:02]} Rxa4 {[%clk 00:05:54]} 70. Rc5+ {[%clk 00:01:15]}
{[%emt 00:00:04]} Kg6 {[%clk 00:05:56]} {[%emt 00:00:02]} 71. Qg8+ {[%clk
00:01:17]} {[%emt 00:00:05]} Kh6 {[%clk 00:06:00]} {[%emt 00:00:01]} 72. Qh8+
{[%clk 00:01:19]} {[%emt 00:00:02]} Kg6 {[%clk 00:06:03]} {[%emt 00:00:01]} 73.
Qh5+ {[%clk 00:01:23]} {[%emt 00:00:01]} Kg7 {[%clk 00:06:07]} {[%emt
00:00:02]} 74. Rc7+ {[%clk 00:01:28]} {[%emt 00:00:01]} Kf8 {[%clk 00:06:11]}
75. Qf7# {[%clk 00:01:32]} {[%emt 00:00:01]} Ra5 {[%clk 00:05:44]} {[%emt
00:00:04]} 1-0